{"text_format":"3","workbook":"xlsx","n_sheets":5,"sheets":["Faktura","Klijenti","Fakture – Glavne","Detalji fakture","Osnovni podaci praćenja fakture"],"not_rendered":{"defined_names":8},"read":"whole","date_system":"1900"}

{"sheet":"Faktura","index":0,"n_rows":39,"n_cols":7,"rows_kept":39,"merged":[[1,1,1,2],[1,3,1,4],[1,5,1,6],[2,1,2,2],[2,3,2,4],[2,5,2,6],[3,3,3,4],[4,3,4,4],[5,3,5,4],[37,1,37,4],[38,1,38,4]]}
[null,"Naziv preduzeća"]
[null,"Ulica i broj",null,"T: Broj telefona",null,"Adresa e-pošte"]
[null,"Grad, država i poštanski broj",null,"F: Broj faksa",null,"Veb sajt"]
[null,"Primalac fakture:",{"$f":"IFERROR(VLOOKUP(VLOOKUP(rngFaktura,FaktureGlavne[],2,FALSE),ListaKlijenata[],3,TRUE),\"\")","v":"Contoso d.o.o."},{"$f":"\"Telefon: \"&IFERROR(VLOOKUP(VLOOKUP(rngFaktura,FaktureGlavne[],2,FALSE),ListaKlijenata[],9,FALSE),\"\")","v":"Telefon: 034-555-0189"},null,"Broj fakture:","3-456-2"]
[null,"Adresa:",{"$f":"IFERROR(IF((VLOOKUP(VLOOKUP(rngFaktura,FaktureGlavne[],2,FALSE),ListaKlijenata[],5,FALSE))=\"\",\"\",(VLOOKUP(VLOOKUP(rngFaktura,FaktureGlavne[],2,FALSE),ListaKlijenata[],5,FALSE))),\"\")","v":"Karađorđeva 567"},{"$f":"\"Faks:     \"&IFERROR(VLOOKUP(VLOOKUP(rngFaktura,FaktureGlavne[],2,FALSE),ListaKlijenata[],11,FALSE),\"\")","v":"Faks:     034-555-0123"},null,"Datum fakture:",{"$f":"IFERROR(IF(VLOOKUP(rngFaktura,FaktureGlavne[],3,FALSE)=\"\",\"\",VLOOKUP(rngFaktura,FaktureGlavne[],3,FALSE)),\"\")","v":"2019-08-08"}]
[null,null,{"$f":"IFERROR(VLOOKUP(VLOOKUP(rngFaktura,FaktureGlavne[],2,FALSE),ListaKlijenata[],6,FALSE)&\", \"& VLOOKUP(VLOOKUP(G4,FaktureGlavne[],2,FALSE),ListaKlijenata[],7,FALSE)&\" \"&VLOOKUP(VLOOKUP(G4,FaktureGlavne[],2,FALSE),ListaKlijenata[],8,FALSE),\"\")","v":"Kragujevac, SR 34000"},{"$f":"\"Adresa e-pošte: \"&IFERROR(VLOOKUP(VLOOKUP(rngFaktura,FaktureGlavne[],2,FALSE),ListaKlijenata[],10,FALSE),\"\")","v":"Adresa e-pošte: neko@example.com"}]
[null,{"$f":"\"Faktura za: \"&IFERROR(VLOOKUP(rngFaktura,FaktureGlavne[],4),\"\")","v":"Faktura za: Projekat 2"}]
[null,"Broj stavke","Opis","Kol.","Cena po jedinici","Popust","Cena"]
[null,{"$f":"IFERROR(INDEX(DetaljiFakture[],SMALL(IF(DetaljiFakture[Broj fakture]=rngFaktura,ROW(DetaljiFakture[])-ROW(DetaljiFakture[#Headers])), ROW(1:1)), MATCH($B$8, DetaljiFakture[#Headers], 0)),\"\")","v":"Z4567"},{"$f":"IFERROR(INDEX(DetaljiFakture[],SMALL(IF(DetaljiFakture[Broj fakture]=rngFaktura,ROW(DetaljiFakture[])-ROW(DetaljiFakture[#Headers])), ROW(1:1)), MATCH($C$8, DetaljiFakture[#Headers], 0)),\"\")","v":"Faktura 3-456-2, podaci 1"},{"$f":"IFERROR(INDEX(DetaljiFakture[],SMALL(IF(DetaljiFakture[Broj fakture]=rngFaktura,ROW(DetaljiFakture[])-ROW(DetaljiFakture[#Headers])), ROW(1:1)), MATCH($D$8, DetaljiFakture[#Headers], 0)),\"\")","v":39},{"$f":"IFERROR(INDEX(DetaljiFakture[],SMALL(IF(DetaljiFakture[Broj fakture]=rngFaktura,ROW(DetaljiFakture[])-ROW(DetaljiFakture[#Headers])), ROW(1:1)), MATCH($E$8, DetaljiFakture[#Headers], 0)),\"\")","v":{"v":5,"d":"5.00 RSD"}},{"$f":"IFERROR(INDEX(DetaljiFakture[],SMALL(IF(DetaljiFakture[Broj fakture]=rngFaktura,ROW(DetaljiFakture[])-ROW(DetaljiFakture[#Headers])), ROW(1:1)), MATCH($F$8, DetaljiFakture[#Headers], 0)),\"\")","v":0},{"$f":"IFERROR((D9*E9)-F9,\"\")","v":{"v":195,"d":"195.00 RSD"}}]
[null,{"$f":"IFERROR(INDEX(DetaljiFakture[],SMALL(IF(DetaljiFakture[Broj fakture]=rngFaktura,ROW(DetaljiFakture[])-ROW(DetaljiFakture[#Headers])), ROW(2:2)), MATCH($B$8, DetaljiFakture[#Headers], 0)),\"\")","v":"Z4568"},{"$f":"IFERROR(INDEX(DetaljiFakture[],SMALL(IF(DetaljiFakture[Broj fakture]=rngFaktura,ROW(DetaljiFakture[])-ROW(DetaljiFakture[#Headers])), ROW(2:2)), MATCH($C$8, DetaljiFakture[#Headers], 0)),\"\")","v":"Faktura 3-456-2, podaci 2"},{"$f":"IFERROR(INDEX(DetaljiFakture[],SMALL(IF(DetaljiFakture[Broj fakture]=rngFaktura,ROW(DetaljiFakture[])-ROW(DetaljiFakture[#Headers])), ROW(2:2)), MATCH($D$8, DetaljiFakture[#Headers], 0)),\"\")","v":40},{"$f":"IFERROR(INDEX(DetaljiFakture[],SMALL(IF(DetaljiFakture[Broj fakture]=rngFaktura,ROW(DetaljiFakture[])-ROW(DetaljiFakture[#Headers])), ROW(2:2)), MATCH($E$8, DetaljiFakture[#Headers], 0)),\"\")","v":{"v":4,"d":"4.00 RSD"}},{"$f":"IFERROR(INDEX(DetaljiFakture[],SMALL(IF(DetaljiFakture[Broj fakture]=rngFaktura,ROW(DetaljiFakture[])-ROW(DetaljiFakture[#Headers])), ROW(2:2)), MATCH($F$8, DetaljiFakture[#Headers], 0)),\"\")","v":{"v":5,"d":"5.00 RSD"}},{"v":155,"d":"155.00 RSD"}]
[null,{"$f":"IFERROR(INDEX(DetaljiFakture[],SMALL(IF(DetaljiFakture[Broj fakture]=rngFaktura,ROW(DetaljiFakture[])-ROW(DetaljiFakture[#Headers])), ROW(3:3)), MATCH($B$8, DetaljiFakture[#Headers], 0)),\"\")","v":"Z4569"},{"$f":"IFERROR(INDEX(DetaljiFakture[],SMALL(IF(DetaljiFakture[Broj fakture]=rngFaktura,ROW(DetaljiFakture[])-ROW(DetaljiFakture[#Headers])), ROW(3:3)), MATCH($C$8, DetaljiFakture[#Headers], 0)),\"\")","v":"Faktura 3-456-2, podaci 3"},{"$f":"IFERROR(INDEX(DetaljiFakture[],SMALL(IF(DetaljiFakture[Broj fakture]=rngFaktura,ROW(DetaljiFakture[])-ROW(DetaljiFakture[#Headers])), ROW(3:3)), MATCH($D$8, DetaljiFakture[#Headers], 0)),\"\")","v":30},{"$f":"IFERROR(INDEX(DetaljiFakture[],SMALL(IF(DetaljiFakture[Broj fakture]=rngFaktura,ROW(DetaljiFakture[])-ROW(DetaljiFakture[#Headers])), ROW(3:3)), MATCH($E$8, DetaljiFakture[#Headers], 0)),\"\")","v":{"v":6,"d":"6.00 RSD"}},{"$f":"IFERROR(INDEX(DetaljiFakture[],SMALL(IF(DetaljiFakture[Broj fakture]=rngFaktura,ROW(DetaljiFakture[])-ROW(DetaljiFakture[#Headers])), ROW(3:3)), MATCH($F$8, DetaljiFakture[#Headers], 0)),\"\")","v":{"v":7,"d":"7.00 RSD"}},{"v":173,"d":"173.00 RSD"}]
[null,{"$f":"IFERROR(INDEX(DetaljiFakture[],SMALL(IF(DetaljiFakture[Broj fakture]=rngFaktura,ROW(DetaljiFakture[])-ROW(DetaljiFakture[#Headers])), ROW(4:4)), MATCH($B$8, DetaljiFakture[#Headers], 0)),\"\")","v":"Z4570"},{"$f":"IFERROR(INDEX(DetaljiFakture[],SMALL(IF(DetaljiFakture[Broj fakture]=rngFaktura,ROW(DetaljiFakture[])-ROW(DetaljiFakture[#Headers])), ROW(4:4)), MATCH($C$8, DetaljiFakture[#Headers], 0)),\"\")","v":"Faktura 3-456-2, podaci 4"},{"$f":"IFERROR(INDEX(DetaljiFakture[],SMALL(IF(DetaljiFakture[Broj fakture]=rngFaktura,ROW(DetaljiFakture[])-ROW(DetaljiFakture[#Headers])), ROW(4:4)), MATCH($D$8, DetaljiFakture[#Headers], 0)),\"\")","v":40},{"$f":"IFERROR(INDEX(DetaljiFakture[],SMALL(IF(DetaljiFakture[Broj fakture]=rngFaktura,ROW(DetaljiFakture[])-ROW(DetaljiFakture[#Headers])), ROW(4:4)), MATCH($E$8, DetaljiFakture[#Headers], 0)),\"\")","v":{"v":7,"d":"7.00 RSD"}},{"$f":"IFERROR(INDEX(DetaljiFakture[],SMALL(IF(DetaljiFakture[Broj fakture]=rngFaktura,ROW(DetaljiFakture[])-ROW(DetaljiFakture[#Headers])), ROW(4:4)), MATCH($F$8, DetaljiFakture[#Headers], 0)),\"\")","v":0},{"v":280,"d":"280.00 RSD"}]
[null,{"$f":"IFERROR(INDEX(DetaljiFakture[],SMALL(IF(DetaljiFakture[Broj fakture]=rngFaktura,ROW(DetaljiFakture[])-ROW(DetaljiFakture[#Headers])), ROW(5:5)), MATCH($B$8, DetaljiFakture[#Headers], 0)),\"\")","v":"Z4571"},{"$f":"IFERROR(INDEX(DetaljiFakture[],SMALL(IF(DetaljiFakture[Broj fakture]=rngFaktura,ROW(DetaljiFakture[])-ROW(DetaljiFakture[#Headers])), ROW(5:5)), MATCH($C$8, DetaljiFakture[#Headers], 0)),\"\")","v":"Faktura 3-456-2, podaci 5"},{"$f":"IFERROR(INDEX(DetaljiFakture[],SMALL(IF(DetaljiFakture[Broj fakture]=rngFaktura,ROW(DetaljiFakture[])-ROW(DetaljiFakture[#Headers])), ROW(5:5)), MATCH($D$8, DetaljiFakture[#Headers], 0)),\"\")","v":10},{"$f":"IFERROR(INDEX(DetaljiFakture[],SMALL(IF(DetaljiFakture[Broj fakture]=rngFaktura,ROW(DetaljiFakture[])-ROW(DetaljiFakture[#Headers])), ROW(5:5)), MATCH($E$8, DetaljiFakture[#Headers], 0)),\"\")","v":{"v":4,"d":"4.00 RSD"}},{"$f":"IFERROR(INDEX(DetaljiFakture[],SMALL(IF(DetaljiFakture[Broj fakture]=rngFaktura,ROW(DetaljiFakture[])-ROW(DetaljiFakture[#Headers])), ROW(5:5)), MATCH($F$8, DetaljiFakture[#Headers], 0)),\"\")","v":0},{"v":40,"d":"40.00 RSD"}]
[null,{"$f":"IFERROR(INDEX(DetaljiFakture[],SMALL(IF(DetaljiFakture[Broj fakture]=rngFaktura,ROW(DetaljiFakture[])-ROW(DetaljiFakture[#Headers])), ROW(6:6)), MATCH($B$8, DetaljiFakture[#Headers], 0)),\"\")","v":"Z4572"},{"$f":"IFERROR(INDEX(DetaljiFakture[],SMALL(IF(DetaljiFakture[Broj fakture]=rngFaktura,ROW(DetaljiFakture[])-ROW(DetaljiFakture[#Headers])), ROW(6:6)), MATCH($C$8, DetaljiFakture[#Headers], 0)),\"\")","v":"Faktura 3-456-2, podaci 6"},{"$f":"IFERROR(INDEX(DetaljiFakture[],SMALL(IF(DetaljiFakture[Broj fakture]=rngFaktura,ROW(DetaljiFakture[])-ROW(DetaljiFakture[#Headers])), ROW(6:6)), MATCH($D$8, DetaljiFakture[#Headers], 0)),\"\")","v":5},{"$f":"IFERROR(INDEX(DetaljiFakture[],SMALL(IF(DetaljiFakture[Broj fakture]=rngFaktura,ROW(DetaljiFakture[])-ROW(DetaljiFakture[#Headers])), ROW(6:6)), MATCH($E$8, DetaljiFakture[#Headers], 0)),\"\")","v":{"v":8,"d":"8.00 RSD"}},{"$f":"IFERROR(INDEX(DetaljiFakture[],SMALL(IF(DetaljiFakture[Broj fakture]=rngFaktura,ROW(DetaljiFakture[])-ROW(DetaljiFakture[#Headers])), ROW(6:6)), MATCH($F$8, DetaljiFakture[#Headers], 0)),\"\")","v":0},{"v":40,"d":"40.00 RSD"}]
[null,{"$f":"IFERROR(INDEX(DetaljiFakture[],SMALL(IF(DetaljiFakture[Broj fakture]=rngFaktura,ROW(DetaljiFakture[])-ROW(DetaljiFakture[#Headers])), ROW(7:7)), MATCH($B$8, DetaljiFakture[#Headers], 0)),\"\")","v":"Z4573"},{"$f":"IFERROR(INDEX(DetaljiFakture[],SMALL(IF(DetaljiFakture[Broj fakture]=rngFaktura,ROW(DetaljiFakture[])-ROW(DetaljiFakture[#Headers])), ROW(7:7)), MATCH($C$8, DetaljiFakture[#Headers], 0)),\"\")","v":"Faktura 3-456-2, podaci 7"},{"$f":"IFERROR(INDEX(DetaljiFakture[],SMALL(IF(DetaljiFakture[Broj fakture]=rngFaktura,ROW(DetaljiFakture[])-ROW(DetaljiFakture[#Headers])), ROW(7:7)), MATCH($D$8, DetaljiFakture[#Headers], 0)),\"\")","v":70},{"$f":"IFERROR(INDEX(DetaljiFakture[],SMALL(IF(DetaljiFakture[Broj fakture]=rngFaktura,ROW(DetaljiFakture[])-ROW(DetaljiFakture[#Headers])), ROW(7:7)), MATCH($E$8, DetaljiFakture[#Headers], 0)),\"\")","v":{"v":6,"d":"6.00 RSD"}},{"$f":"IFERROR(INDEX(DetaljiFakture[],SMALL(IF(DetaljiFakture[Broj fakture]=rngFaktura,ROW(DetaljiFakture[])-ROW(DetaljiFakture[#Headers])), ROW(7:7)), MATCH($F$8, DetaljiFakture[#Headers], 0)),\"\")","v":0},{"v":420,"d":"420.00 RSD"}]
[null,{"$f":"IFERROR(INDEX(DetaljiFakture[],SMALL(IF(DetaljiFakture[Broj fakture]=rngFaktura,ROW(DetaljiFakture[])-ROW(DetaljiFakture[#Headers])), ROW(8:8)), MATCH($B$8, DetaljiFakture[#Headers], 0)),\"\")","v":"Z4574"},{"$f":"IFERROR(INDEX(DetaljiFakture[],SMALL(IF(DetaljiFakture[Broj fakture]=rngFaktura,ROW(DetaljiFakture[])-ROW(DetaljiFakture[#Headers])), ROW(8:8)), MATCH($C$8, DetaljiFakture[#Headers], 0)),\"\")","v":"Faktura 3-456-2, podaci 8"},{"$f":"IFERROR(INDEX(DetaljiFakture[],SMALL(IF(DetaljiFakture[Broj fakture]=rngFaktura,ROW(DetaljiFakture[])-ROW(DetaljiFakture[#Headers])), ROW(8:8)), MATCH($D$8, DetaljiFakture[#Headers], 0)),\"\")","v":25},{"$f":"IFERROR(INDEX(DetaljiFakture[],SMALL(IF(DetaljiFakture[Broj fakture]=rngFaktura,ROW(DetaljiFakture[])-ROW(DetaljiFakture[#Headers])), ROW(8:8)), MATCH($E$8, DetaljiFakture[#Headers], 0)),\"\")","v":{"v":4,"d":"4.00 RSD"}},{"$f":"IFERROR(INDEX(DetaljiFakture[],SMALL(IF(DetaljiFakture[Broj fakture]=rngFaktura,ROW(DetaljiFakture[])-ROW(DetaljiFakture[#Headers])), ROW(8:8)), MATCH($F$8, DetaljiFakture[#Headers], 0)),\"\")","v":0},{"v":100,"d":"100.00 RSD"}]
[null,{"$f":"IFERROR(INDEX(DetaljiFakture[],SMALL(IF(DetaljiFakture[Broj fakture]=rngFaktura,ROW(DetaljiFakture[])-ROW(DetaljiFakture[#Headers])), ROW(9:9)), MATCH($B$8, DetaljiFakture[#Headers], 0)),\"\")","v":"Z4575"},{"$f":"IFERROR(INDEX(DetaljiFakture[],SMALL(IF(DetaljiFakture[Broj fakture]=rngFaktura,ROW(DetaljiFakture[])-ROW(DetaljiFakture[#Headers])), ROW(9:9)), MATCH($C$8, DetaljiFakture[#Headers], 0)),\"\")","v":"Faktura 3-456-2, podaci 9"},{"$f":"IFERROR(INDEX(DetaljiFakture[],SMALL(IF(DetaljiFakture[Broj fakture]=rngFaktura,ROW(DetaljiFakture[])-ROW(DetaljiFakture[#Headers])), ROW(9:9)), MATCH($D$8, DetaljiFakture[#Headers], 0)),\"\")","v":5},{"$f":"IFERROR(INDEX(DetaljiFakture[],SMALL(IF(DetaljiFakture[Broj fakture]=rngFaktura,ROW(DetaljiFakture[])-ROW(DetaljiFakture[#Headers])), ROW(9:9)), MATCH($E$8, DetaljiFakture[#Headers], 0)),\"\")","v":{"v":7,"d":"7.00 RSD"}},{"$f":"IFERROR(INDEX(DetaljiFakture[],SMALL(IF(DetaljiFakture[Broj fakture]=rngFaktura,ROW(DetaljiFakture[])-ROW(DetaljiFakture[#Headers])), ROW(9:9)), MATCH($F$8, DetaljiFakture[#Headers], 0)),\"\")","v":{"v":3,"d":"3.00 RSD"}},{"v":32,"d":"32.00 RSD"}]
[null,{"$f":"IFERROR(INDEX(DetaljiFakture[],SMALL(IF(DetaljiFakture[Broj fakture]=rngFaktura,ROW(DetaljiFakture[])-ROW(DetaljiFakture[#Headers])), ROW(10:10)), MATCH($B$8, DetaljiFakture[#Headers], 0)),\"\")","v":"Z4576"},{"$f":"IFERROR(INDEX(DetaljiFakture[],SMALL(IF(DetaljiFakture[Broj fakture]=rngFaktura,ROW(DetaljiFakture[])-ROW(DetaljiFakture[#Headers])), ROW(10:10)), MATCH($C$8, DetaljiFakture[#Headers], 0)),\"\")","v":"Faktura 3-456-2, podaci 10"},{"$f":"IFERROR(INDEX(DetaljiFakture[],SMALL(IF(DetaljiFakture[Broj fakture]=rngFaktura,ROW(DetaljiFakture[])-ROW(DetaljiFakture[#Headers])), ROW(10:10)), MATCH($D$8, DetaljiFakture[#Headers], 0)),\"\")","v":80},{"$f":"IFERROR(INDEX(DetaljiFakture[],SMALL(IF(DetaljiFakture[Broj fakture]=rngFaktura,ROW(DetaljiFakture[])-ROW(DetaljiFakture[#Headers])), ROW(10:10)), MATCH($E$8, DetaljiFakture[#Headers], 0)),\"\")","v":{"v":1,"d":"1.00 RSD"}},{"$f":"IFERROR(INDEX(DetaljiFakture[],SMALL(IF(DetaljiFakture[Broj fakture]=rngFaktura,ROW(DetaljiFakture[])-ROW(DetaljiFakture[#Headers])), ROW(10:10)), MATCH($F$8, DetaljiFakture[#Headers], 0)),\"\")","v":0},{"v":80,"d":"80.00 RSD"}]
[null,{"$f":"IFERROR(INDEX(DetaljiFakture[],SMALL(IF(DetaljiFakture[Broj fakture]=rngFaktura,ROW(DetaljiFakture[])-ROW(DetaljiFakture[#Headers])), ROW(11:11)), MATCH($B$8, DetaljiFakture[#Headers], 0)),\"\")","v":"Z4577"},{"$f":"IFERROR(INDEX(DetaljiFakture[],SMALL(IF(DetaljiFakture[Broj fakture]=rngFaktura,ROW(DetaljiFakture[])-ROW(DetaljiFakture[#Headers])), ROW(11:11)), MATCH($C$8, DetaljiFakture[#Headers], 0)),\"\")","v":"Faktura 3-456-2, podaci 11"},{"$f":"IFERROR(INDEX(DetaljiFakture[],SMALL(IF(DetaljiFakture[Broj fakture]=rngFaktura,ROW(DetaljiFakture[])-ROW(DetaljiFakture[#Headers])), ROW(11:11)), MATCH($D$8, DetaljiFakture[#Headers], 0)),\"\")","v":65},{"$f":"IFERROR(INDEX(DetaljiFakture[],SMALL(IF(DetaljiFakture[Broj fakture]=rngFaktura,ROW(DetaljiFakture[])-ROW(DetaljiFakture[#Headers])), ROW(11:11)), MATCH($E$8, DetaljiFakture[#Headers], 0)),\"\")","v":{"v":7,"d":"7.00 RSD"}},{"$f":"IFERROR(INDEX(DetaljiFakture[],SMALL(IF(DetaljiFakture[Broj fakture]=rngFaktura,ROW(DetaljiFakture[])-ROW(DetaljiFakture[#Headers])), ROW(11:11)), MATCH($F$8, DetaljiFakture[#Headers], 0)),\"\")","v":0},{"v":455,"d":"455.00 RSD"}]
[null,{"$f":"IFERROR(INDEX(DetaljiFakture[],SMALL(IF(DetaljiFakture[Broj fakture]=rngFaktura,ROW(DetaljiFakture[])-ROW(DetaljiFakture[#Headers])), ROW(12:12)), MATCH($B$8, DetaljiFakture[#Headers], 0)),\"\")","v":"Z4578"},{"$f":"IFERROR(INDEX(DetaljiFakture[],SMALL(IF(DetaljiFakture[Broj fakture]=rngFaktura,ROW(DetaljiFakture[])-ROW(DetaljiFakture[#Headers])), ROW(12:12)), MATCH($C$8, DetaljiFakture[#Headers], 0)),\"\")","v":"Faktura 3-456-2, podaci 12"},{"$f":"IFERROR(INDEX(DetaljiFakture[],SMALL(IF(DetaljiFakture[Broj fakture]=rngFaktura,ROW(DetaljiFakture[])-ROW(DetaljiFakture[#Headers])), ROW(12:12)), MATCH($D$8, DetaljiFakture[#Headers], 0)),\"\")","v":44},{"$f":"IFERROR(INDEX(DetaljiFakture[],SMALL(IF(DetaljiFakture[Broj fakture]=rngFaktura,ROW(DetaljiFakture[])-ROW(DetaljiFakture[#Headers])), ROW(12:12)), MATCH($E$8, DetaljiFakture[#Headers], 0)),\"\")","v":{"v":1,"d":"1.00 RSD"}},{"$f":"IFERROR(INDEX(DetaljiFakture[],SMALL(IF(DetaljiFakture[Broj fakture]=rngFaktura,ROW(DetaljiFakture[])-ROW(DetaljiFakture[#Headers])), ROW(12:12)), MATCH($F$8, DetaljiFakture[#Headers], 0)),\"\")","v":0},{"v":44,"d":"44.00 RSD"}]
[null,{"$f":"IFERROR(INDEX(DetaljiFakture[],SMALL(IF(DetaljiFakture[Broj fakture]=rngFaktura,ROW(DetaljiFakture[])-ROW(DetaljiFakture[#Headers])), ROW(13:13)), MATCH($B$8, DetaljiFakture[#Headers], 0)),\"\")","v":""},{"$f":"IFERROR(INDEX(DetaljiFakture[],SMALL(IF(DetaljiFakture[Broj fakture]=rngFaktura,ROW(DetaljiFakture[])-ROW(DetaljiFakture[#Headers])), ROW(13:13)), MATCH($C$8, DetaljiFakture[#Headers], 0)),\"\")","v":""},{"$f":"IFERROR(INDEX(DetaljiFakture[],SMALL(IF(DetaljiFakture[Broj fakture]=rngFaktura,ROW(DetaljiFakture[])-ROW(DetaljiFakture[#Headers])), ROW(13:13)), MATCH($D$8, DetaljiFakture[#Headers], 0)),\"\")","v":""},{"$f":"IFERROR(INDEX(DetaljiFakture[],SMALL(IF(DetaljiFakture[Broj fakture]=rngFaktura,ROW(DetaljiFakture[])-ROW(DetaljiFakture[#Headers])), ROW(13:13)), MATCH($E$8, DetaljiFakture[#Headers], 0)),\"\")","v":""},{"$f":"IFERROR(INDEX(DetaljiFakture[],SMALL(IF(DetaljiFakture[Broj fakture]=rngFaktura,ROW(DetaljiFakture[])-ROW(DetaljiFakture[#Headers])), ROW(13:13)), MATCH($F$8, DetaljiFakture[#Headers], 0)),\"\")","v":""},""]
[null,{"$f":"IFERROR(INDEX(DetaljiFakture[],SMALL(IF(DetaljiFakture[Broj fakture]=rngFaktura,ROW(DetaljiFakture[])-ROW(DetaljiFakture[#Headers])), ROW(14:14)), MATCH($B$8, DetaljiFakture[#Headers], 0)),\"\")","v":""},{"$f":"IFERROR(INDEX(DetaljiFakture[],SMALL(IF(DetaljiFakture[Broj fakture]=rngFaktura,ROW(DetaljiFakture[])-ROW(DetaljiFakture[#Headers])), ROW(14:14)), MATCH($C$8, DetaljiFakture[#Headers], 0)),\"\")","v":""},{"$f":"IFERROR(INDEX(DetaljiFakture[],SMALL(IF(DetaljiFakture[Broj fakture]=rngFaktura,ROW(DetaljiFakture[])-ROW(DetaljiFakture[#Headers])), ROW(14:14)), MATCH($D$8, DetaljiFakture[#Headers], 0)),\"\")","v":""},{"$f":"IFERROR(INDEX(DetaljiFakture[],SMALL(IF(DetaljiFakture[Broj fakture]=rngFaktura,ROW(DetaljiFakture[])-ROW(DetaljiFakture[#Headers])), ROW(14:14)), MATCH($E$8, DetaljiFakture[#Headers], 0)),\"\")","v":""},{"$f":"IFERROR(INDEX(DetaljiFakture[],SMALL(IF(DetaljiFakture[Broj fakture]=rngFaktura,ROW(DetaljiFakture[])-ROW(DetaljiFakture[#Headers])), ROW(14:14)), MATCH($F$8, DetaljiFakture[#Headers], 0)),\"\")","v":""},""]
[null,{"$f":"IFERROR(INDEX(DetaljiFakture[],SMALL(IF(DetaljiFakture[Broj fakture]=rngFaktura,ROW(DetaljiFakture[])-ROW(DetaljiFakture[#Headers])), ROW(15:15)), MATCH($B$8, DetaljiFakture[#Headers], 0)),\"\")","v":""},{"$f":"IFERROR(INDEX(DetaljiFakture[],SMALL(IF(DetaljiFakture[Broj fakture]=rngFaktura,ROW(DetaljiFakture[])-ROW(DetaljiFakture[#Headers])), ROW(15:15)), MATCH($C$8, DetaljiFakture[#Headers], 0)),\"\")","v":""},{"$f":"IFERROR(INDEX(DetaljiFakture[],SMALL(IF(DetaljiFakture[Broj fakture]=rngFaktura,ROW(DetaljiFakture[])-ROW(DetaljiFakture[#Headers])), ROW(15:15)), MATCH($D$8, DetaljiFakture[#Headers], 0)),\"\")","v":""},{"$f":"IFERROR(INDEX(DetaljiFakture[],SMALL(IF(DetaljiFakture[Broj fakture]=rngFaktura,ROW(DetaljiFakture[])-ROW(DetaljiFakture[#Headers])), ROW(15:15)), MATCH($E$8, DetaljiFakture[#Headers], 0)),\"\")","v":""},{"$f":"IFERROR(INDEX(DetaljiFakture[],SMALL(IF(DetaljiFakture[Broj fakture]=rngFaktura,ROW(DetaljiFakture[])-ROW(DetaljiFakture[#Headers])), ROW(15:15)), MATCH($F$8, DetaljiFakture[#Headers], 0)),\"\")","v":""},""]
[null,{"$f":"IFERROR(INDEX(DetaljiFakture[],SMALL(IF(DetaljiFakture[Broj fakture]=rngFaktura,ROW(DetaljiFakture[])-ROW(DetaljiFakture[#Headers])), ROW(16:16)), MATCH($B$8, DetaljiFakture[#Headers], 0)),\"\")","v":""},{"$f":"IFERROR(INDEX(DetaljiFakture[],SMALL(IF(DetaljiFakture[Broj fakture]=rngFaktura,ROW(DetaljiFakture[])-ROW(DetaljiFakture[#Headers])), ROW(16:16)), MATCH($C$8, DetaljiFakture[#Headers], 0)),\"\")","v":""},{"$f":"IFERROR(INDEX(DetaljiFakture[],SMALL(IF(DetaljiFakture[Broj fakture]=rngFaktura,ROW(DetaljiFakture[])-ROW(DetaljiFakture[#Headers])), ROW(16:16)), MATCH($D$8, DetaljiFakture[#Headers], 0)),\"\")","v":""},{"$f":"IFERROR(INDEX(DetaljiFakture[],SMALL(IF(DetaljiFakture[Broj fakture]=rngFaktura,ROW(DetaljiFakture[])-ROW(DetaljiFakture[#Headers])), ROW(16:16)), MATCH($E$8, DetaljiFakture[#Headers], 0)),\"\")","v":""},{"$f":"IFERROR(INDEX(DetaljiFakture[],SMALL(IF(DetaljiFakture[Broj fakture]=rngFaktura,ROW(DetaljiFakture[])-ROW(DetaljiFakture[#Headers])), ROW(16:16)), MATCH($F$8, DetaljiFakture[#Headers], 0)),\"\")","v":""},""]
[null,{"$f":"IFERROR(INDEX(DetaljiFakture[],SMALL(IF(DetaljiFakture[Broj fakture]=rngFaktura,ROW(DetaljiFakture[])-ROW(DetaljiFakture[#Headers])), ROW(17:17)), MATCH($B$8, DetaljiFakture[#Headers], 0)),\"\")","v":""},{"$f":"IFERROR(INDEX(DetaljiFakture[],SMALL(IF(DetaljiFakture[Broj fakture]=rngFaktura,ROW(DetaljiFakture[])-ROW(DetaljiFakture[#Headers])), ROW(17:17)), MATCH($C$8, DetaljiFakture[#Headers], 0)),\"\")","v":""},{"$f":"IFERROR(INDEX(DetaljiFakture[],SMALL(IF(DetaljiFakture[Broj fakture]=rngFaktura,ROW(DetaljiFakture[])-ROW(DetaljiFakture[#Headers])), ROW(17:17)), MATCH($D$8, DetaljiFakture[#Headers], 0)),\"\")","v":""},{"$f":"IFERROR(INDEX(DetaljiFakture[],SMALL(IF(DetaljiFakture[Broj fakture]=rngFaktura,ROW(DetaljiFakture[])-ROW(DetaljiFakture[#Headers])), ROW(17:17)), MATCH($E$8, DetaljiFakture[#Headers], 0)),\"\")","v":""},{"$f":"IFERROR(INDEX(DetaljiFakture[],SMALL(IF(DetaljiFakture[Broj fakture]=rngFaktura,ROW(DetaljiFakture[])-ROW(DetaljiFakture[#Headers])), ROW(17:17)), MATCH($F$8, DetaljiFakture[#Headers], 0)),\"\")","v":""},""]
[null,{"$f":"IFERROR(INDEX(DetaljiFakture[],SMALL(IF(DetaljiFakture[Broj fakture]=rngFaktura,ROW(DetaljiFakture[])-ROW(DetaljiFakture[#Headers])), ROW(18:18)), MATCH($B$8, DetaljiFakture[#Headers], 0)),\"\")","v":""},{"$f":"IFERROR(INDEX(DetaljiFakture[],SMALL(IF(DetaljiFakture[Broj fakture]=rngFaktura,ROW(DetaljiFakture[])-ROW(DetaljiFakture[#Headers])), ROW(18:18)), MATCH($C$8, DetaljiFakture[#Headers], 0)),\"\")","v":""},{"$f":"IFERROR(INDEX(DetaljiFakture[],SMALL(IF(DetaljiFakture[Broj fakture]=rngFaktura,ROW(DetaljiFakture[])-ROW(DetaljiFakture[#Headers])), ROW(18:18)), MATCH($D$8, DetaljiFakture[#Headers], 0)),\"\")","v":""},{"$f":"IFERROR(INDEX(DetaljiFakture[],SMALL(IF(DetaljiFakture[Broj fakture]=rngFaktura,ROW(DetaljiFakture[])-ROW(DetaljiFakture[#Headers])), ROW(18:18)), MATCH($E$8, DetaljiFakture[#Headers], 0)),\"\")","v":""},{"$f":"IFERROR(INDEX(DetaljiFakture[],SMALL(IF(DetaljiFakture[Broj fakture]=rngFaktura,ROW(DetaljiFakture[])-ROW(DetaljiFakture[#Headers])), ROW(18:18)), MATCH($F$8, DetaljiFakture[#Headers], 0)),\"\")","v":""},""]
[null,{"$f":"IFERROR(INDEX(DetaljiFakture[],SMALL(IF(DetaljiFakture[Broj fakture]=rngFaktura,ROW(DetaljiFakture[])-ROW(DetaljiFakture[#Headers])), ROW(19:19)), MATCH($B$8, DetaljiFakture[#Headers], 0)),\"\")","v":""},{"$f":"IFERROR(INDEX(DetaljiFakture[],SMALL(IF(DetaljiFakture[Broj fakture]=rngFaktura,ROW(DetaljiFakture[])-ROW(DetaljiFakture[#Headers])), ROW(19:19)), MATCH($C$8, DetaljiFakture[#Headers], 0)),\"\")","v":""},{"$f":"IFERROR(INDEX(DetaljiFakture[],SMALL(IF(DetaljiFakture[Broj fakture]=rngFaktura,ROW(DetaljiFakture[])-ROW(DetaljiFakture[#Headers])), ROW(19:19)), MATCH($D$8, DetaljiFakture[#Headers], 0)),\"\")","v":""},{"$f":"IFERROR(INDEX(DetaljiFakture[],SMALL(IF(DetaljiFakture[Broj fakture]=rngFaktura,ROW(DetaljiFakture[])-ROW(DetaljiFakture[#Headers])), ROW(19:19)), MATCH($E$8, DetaljiFakture[#Headers], 0)),\"\")","v":""},{"$f":"IFERROR(INDEX(DetaljiFakture[],SMALL(IF(DetaljiFakture[Broj fakture]=rngFaktura,ROW(DetaljiFakture[])-ROW(DetaljiFakture[#Headers])), ROW(19:19)), MATCH($F$8, DetaljiFakture[#Headers], 0)),\"\")","v":""},""]
[null,{"$f":"IFERROR(INDEX(DetaljiFakture[],SMALL(IF(DetaljiFakture[Broj fakture]=rngFaktura,ROW(DetaljiFakture[])-ROW(DetaljiFakture[#Headers])), ROW(20:20)), MATCH($B$8, DetaljiFakture[#Headers], 0)),\"\")","v":""},{"$f":"IFERROR(INDEX(DetaljiFakture[],SMALL(IF(DetaljiFakture[Broj fakture]=rngFaktura,ROW(DetaljiFakture[])-ROW(DetaljiFakture[#Headers])), ROW(20:20)), MATCH($C$8, DetaljiFakture[#Headers], 0)),\"\")","v":""},{"$f":"IFERROR(INDEX(DetaljiFakture[],SMALL(IF(DetaljiFakture[Broj fakture]=rngFaktura,ROW(DetaljiFakture[])-ROW(DetaljiFakture[#Headers])), ROW(20:20)), MATCH($D$8, DetaljiFakture[#Headers], 0)),\"\")","v":""},{"$f":"IFERROR(INDEX(DetaljiFakture[],SMALL(IF(DetaljiFakture[Broj fakture]=rngFaktura,ROW(DetaljiFakture[])-ROW(DetaljiFakture[#Headers])), ROW(20:20)), MATCH($E$8, DetaljiFakture[#Headers], 0)),\"\")","v":""},{"$f":"IFERROR(INDEX(DetaljiFakture[],SMALL(IF(DetaljiFakture[Broj fakture]=rngFaktura,ROW(DetaljiFakture[])-ROW(DetaljiFakture[#Headers])), ROW(20:20)), MATCH($F$8, DetaljiFakture[#Headers], 0)),\"\")","v":""},""]
[null,{"$f":"IFERROR(INDEX(DetaljiFakture[],SMALL(IF(DetaljiFakture[Broj fakture]=rngFaktura,ROW(DetaljiFakture[])-ROW(DetaljiFakture[#Headers])), ROW(21:21)), MATCH($B$8, DetaljiFakture[#Headers], 0)),\"\")","v":""},{"$f":"IFERROR(INDEX(DetaljiFakture[],SMALL(IF(DetaljiFakture[Broj fakture]=rngFaktura,ROW(DetaljiFakture[])-ROW(DetaljiFakture[#Headers])), ROW(21:21)), MATCH($C$8, DetaljiFakture[#Headers], 0)),\"\")","v":""},{"$f":"IFERROR(INDEX(DetaljiFakture[],SMALL(IF(DetaljiFakture[Broj fakture]=rngFaktura,ROW(DetaljiFakture[])-ROW(DetaljiFakture[#Headers])), ROW(21:21)), MATCH($D$8, DetaljiFakture[#Headers], 0)),\"\")","v":""},{"$f":"IFERROR(INDEX(DetaljiFakture[],SMALL(IF(DetaljiFakture[Broj fakture]=rngFaktura,ROW(DetaljiFakture[])-ROW(DetaljiFakture[#Headers])), ROW(21:21)), MATCH($E$8, DetaljiFakture[#Headers], 0)),\"\")","v":""},{"$f":"IFERROR(INDEX(DetaljiFakture[],SMALL(IF(DetaljiFakture[Broj fakture]=rngFaktura,ROW(DetaljiFakture[])-ROW(DetaljiFakture[#Headers])), ROW(21:21)), MATCH($F$8, DetaljiFakture[#Headers], 0)),\"\")","v":""},""]
[null,{"$f":"IFERROR(INDEX(DetaljiFakture[],SMALL(IF(DetaljiFakture[Broj fakture]=rngFaktura,ROW(DetaljiFakture[])-ROW(DetaljiFakture[#Headers])), ROW(22:22)), MATCH($B$8, DetaljiFakture[#Headers], 0)),\"\")","v":""},{"$f":"IFERROR(INDEX(DetaljiFakture[],SMALL(IF(DetaljiFakture[Broj fakture]=rngFaktura,ROW(DetaljiFakture[])-ROW(DetaljiFakture[#Headers])), ROW(22:22)), MATCH($C$8, DetaljiFakture[#Headers], 0)),\"\")","v":""},{"$f":"IFERROR(INDEX(DetaljiFakture[],SMALL(IF(DetaljiFakture[Broj fakture]=rngFaktura,ROW(DetaljiFakture[])-ROW(DetaljiFakture[#Headers])), ROW(22:22)), MATCH($D$8, DetaljiFakture[#Headers], 0)),\"\")","v":""},{"$f":"IFERROR(INDEX(DetaljiFakture[],SMALL(IF(DetaljiFakture[Broj fakture]=rngFaktura,ROW(DetaljiFakture[])-ROW(DetaljiFakture[#Headers])), ROW(22:22)), MATCH($E$8, DetaljiFakture[#Headers], 0)),\"\")","v":""},{"$f":"IFERROR(INDEX(DetaljiFakture[],SMALL(IF(DetaljiFakture[Broj fakture]=rngFaktura,ROW(DetaljiFakture[])-ROW(DetaljiFakture[#Headers])), ROW(22:22)), MATCH($F$8, DetaljiFakture[#Headers], 0)),\"\")","v":""},""]
[null,{"$f":"IFERROR(INDEX(DetaljiFakture[],SMALL(IF(DetaljiFakture[Broj fakture]=rngFaktura,ROW(DetaljiFakture[])-ROW(DetaljiFakture[#Headers])), ROW(23:23)), MATCH($B$8, DetaljiFakture[#Headers], 0)),\"\")","v":""},{"$f":"IFERROR(INDEX(DetaljiFakture[],SMALL(IF(DetaljiFakture[Broj fakture]=rngFaktura,ROW(DetaljiFakture[])-ROW(DetaljiFakture[#Headers])), ROW(23:23)), MATCH($C$8, DetaljiFakture[#Headers], 0)),\"\")","v":""},{"$f":"IFERROR(INDEX(DetaljiFakture[],SMALL(IF(DetaljiFakture[Broj fakture]=rngFaktura,ROW(DetaljiFakture[])-ROW(DetaljiFakture[#Headers])), ROW(23:23)), MATCH($D$8, DetaljiFakture[#Headers], 0)),\"\")","v":""},{"$f":"IFERROR(INDEX(DetaljiFakture[],SMALL(IF(DetaljiFakture[Broj fakture]=rngFaktura,ROW(DetaljiFakture[])-ROW(DetaljiFakture[#Headers])), ROW(23:23)), MATCH($E$8, DetaljiFakture[#Headers], 0)),\"\")","v":""},{"$f":"IFERROR(INDEX(DetaljiFakture[],SMALL(IF(DetaljiFakture[Broj fakture]=rngFaktura,ROW(DetaljiFakture[])-ROW(DetaljiFakture[#Headers])), ROW(23:23)), MATCH($F$8, DetaljiFakture[#Headers], 0)),\"\")","v":""},""]
[null,{"$f":"IFERROR(INDEX(DetaljiFakture[],SMALL(IF(DetaljiFakture[Broj fakture]=rngFaktura,ROW(DetaljiFakture[])-ROW(DetaljiFakture[#Headers])), ROW(24:24)), MATCH($B$8, DetaljiFakture[#Headers], 0)),\"\")","v":""},{"$f":"IFERROR(INDEX(DetaljiFakture[],SMALL(IF(DetaljiFakture[Broj fakture]=rngFaktura,ROW(DetaljiFakture[])-ROW(DetaljiFakture[#Headers])), ROW(24:24)), MATCH($C$8, DetaljiFakture[#Headers], 0)),\"\")","v":""},{"$f":"IFERROR(INDEX(DetaljiFakture[],SMALL(IF(DetaljiFakture[Broj fakture]=rngFaktura,ROW(DetaljiFakture[])-ROW(DetaljiFakture[#Headers])), ROW(24:24)), MATCH($D$8, DetaljiFakture[#Headers], 0)),\"\")","v":""},{"$f":"IFERROR(INDEX(DetaljiFakture[],SMALL(IF(DetaljiFakture[Broj fakture]=rngFaktura,ROW(DetaljiFakture[])-ROW(DetaljiFakture[#Headers])), ROW(24:24)), MATCH($E$8, DetaljiFakture[#Headers], 0)),\"\")","v":""},{"$f":"IFERROR(INDEX(DetaljiFakture[],SMALL(IF(DetaljiFakture[Broj fakture]=rngFaktura,ROW(DetaljiFakture[])-ROW(DetaljiFakture[#Headers])), ROW(24:24)), MATCH($F$8, DetaljiFakture[#Headers], 0)),\"\")","v":""},""]
[null,{"$f":"IFERROR(INDEX(DetaljiFakture[],SMALL(IF(DetaljiFakture[Broj fakture]=rngFaktura,ROW(DetaljiFakture[])-ROW(DetaljiFakture[#Headers])), ROW(25:25)), MATCH($B$8, DetaljiFakture[#Headers], 0)),\"\")","v":""},{"$f":"IFERROR(INDEX(DetaljiFakture[],SMALL(IF(DetaljiFakture[Broj fakture]=rngFaktura,ROW(DetaljiFakture[])-ROW(DetaljiFakture[#Headers])), ROW(25:25)), MATCH($C$8, DetaljiFakture[#Headers], 0)),\"\")","v":""},{"$f":"IFERROR(INDEX(DetaljiFakture[],SMALL(IF(DetaljiFakture[Broj fakture]=rngFaktura,ROW(DetaljiFakture[])-ROW(DetaljiFakture[#Headers])), ROW(25:25)), MATCH($D$8, DetaljiFakture[#Headers], 0)),\"\")","v":""},{"$f":"IFERROR(INDEX(DetaljiFakture[],SMALL(IF(DetaljiFakture[Broj fakture]=rngFaktura,ROW(DetaljiFakture[])-ROW(DetaljiFakture[#Headers])), ROW(25:25)), MATCH($E$8, DetaljiFakture[#Headers], 0)),\"\")","v":""},{"$f":"IFERROR(INDEX(DetaljiFakture[],SMALL(IF(DetaljiFakture[Broj fakture]=rngFaktura,ROW(DetaljiFakture[])-ROW(DetaljiFakture[#Headers])), ROW(25:25)), MATCH($F$8, DetaljiFakture[#Headers], 0)),\"\")","v":""},""]
[{"$nulls":5},"Međuvrednost fakture",{"$f":"SUM(FakturaProjekta[Cena])","v":{"v":2014,"d":"2,014.00 RSD"}}]
[{"$nulls":5},"Poreska stopa",{"$f":"VLOOKUP(rngFaktura,FaktureGlavne[],5)","v":{"v":0.0875,"d":"8.75%"}}]
[{"$nulls":5},"Porez na promet",{"$f":"G34*G35","v":{"v":176.225,"d":"176.23 RSD"}}]
[{"$nulls":5},"Drugo",{"$f":"VLOOKUP(rngFaktura,FaktureGlavne[],6)","v":0}]
[null,{"$f":"\"Neka svi čekovi glase na \"&NazivPreduzeća&\".\"","v":"Neka svi čekovi glase na Naziv preduzeća."},{"$nulls":3},"Primljeni depozit",{"$f":"VLOOKUP(rngFaktura,FaktureGlavne[],7)","v":0}]
[null,"Za <#> dan(a) krajnji je rok plaćanja ukupnog iznosa. Na neizmirene račune se plaća naknada za usluge u iznosu od <#>% mesečno.",{"$nulls":3},"ZBIR",{"$f":"(G34+G36+G37)-G38","v":{"v":2190.225,"d":"2,190.23 RSD"}}]

{"sheet":"Klijenti","index":1,"n_rows":6,"n_cols":12,"rows_kept":6}
[]
[null,null,"Klijenti"]
[null,"Pretraživanje","Preduzeće #","Ime preduzeća","Ime kontakta","Adresa","Grad","Država","Poštanski broj","Telefon","Adresa e-pošte","Faks"]
[null,{"$f":"C4& \" - \"&D4","v":"1 - Tailspin Toys "},1,"Tailspin Toys ","Dušan Stević","Višnjićeva 345","Sombor","SR","25000","025-555-0178","neko@example.com","025-555-0187"]
[null,"2 - Contoso d.o.o.",2,"Contoso d.o.o.","Saša Pavić","Karađorđeva 567","Kragujevac","SR","34000","034-555-0189","neko@example.com","034-555-0123"]
[null,"UkupneVrednosti",{"$f":"\"Ukupno Klijenata: \"&SUBTOTAL(103,ListaKlijenata[Preduzeće '#])","v":"Ukupno Klijenata: 2"}]

{"sheet":"Fakture – Glavne","index":2,"n_rows":6,"n_cols":11,"rows_kept":6}
[]
[null,"Fakture"]
[null,"Broj fakture","Preduzeće","Datum fakture","Opis projekta","Poreska stopa","Drugo","Depozit","Ukupna vrednost detalja","Ukupna vrednost fakture","Napomene"]
[null,"3-456-1","1 - Tailspin Toys ",{"$f":"TODAY()","v":"2019-07-29"},"Projekat 1",{"v":0.0875,"d":"8.75%"},{"v":100,"d":"100.00 RSD"},{"v":100,"d":"100.00 RSD"},{"$f":"SUMIF(DetaljiFakture[Broj fakture],\"=\"&FaktureGlavne[[#This Row],[Broj fakture]],DetaljiFakture[Zbir])","v":{"v":5200,"d":"5,200.00 RSD"}},{"$f":"(FaktureGlavne[[#This Row],[Ukupna vrednost detalja]]*(1+FaktureGlavne[[#This Row],[Poreska stopa]]))+FaktureGlavne[[#This Row],[Drugo]]-FaktureGlavne[[#This Row],[Depozit]]","v":{"v":5654.999999999999,"d":"5,655.00 RSD"}}]
[null,"3-456-2","2 - Contoso d.o.o.",{"$f":"TODAY()+10","v":"2019-08-08"},"Projekat 2",{"v":0.0875,"d":"8.75%"},null,null,{"$f":"SUMIF(DetaljiFakture[Broj fakture],\"=\"&FaktureGlavne[[#This Row],[Broj fakture]],DetaljiFakture[Zbir])","v":{"v":2014,"d":"2,014.00 RSD"}},{"$f":"(FaktureGlavne[[#This Row],[Ukupna vrednost detalja]]*(1+FaktureGlavne[[#This Row],[Poreska stopa]]))+FaktureGlavne[[#This Row],[Drugo]]-FaktureGlavne[[#This Row],[Depozit]]","v":{"v":2190.225,"d":"2,190.23 RSD"}}]
[null,"UkupneVrednosti",{"$f":"\"Ukupne fakture: \"&SUBTOTAL(103,FaktureGlavne[Broj fakture])","v":"Ukupne fakture: 2"},{"$nulls":3},{"$f":"SUBTOTAL(109,FaktureGlavne[Drugo])","v":{"v":100,"d":"100.00 RSD"}},{"$f":"SUBTOTAL(109,FaktureGlavne[Depozit])","v":{"v":100,"d":"100.00 RSD"}},{"$f":"SUBTOTAL(109,FaktureGlavne[Ukupna vrednost detalja])","v":{"v":7214,"d":"7,214.00 RSD"}},{"$f":"SUBTOTAL(109,FaktureGlavne[Ukupna vrednost fakture])","v":{"v":7845.2249999999985,"d":"7,845.23 RSD"}}]

{"sheet":"Detalji fakture","index":3,"n_rows":40,"n_cols":8,"rows_kept":40}
[]
[null,"Detalji fakture"]
[null,"Opis","Broj fakture","Broj stavke","Kol.","Cena po jedinici","Popust","Zbir"]
[null,"Faktura 3-456-1, podaci 1","3-456-1",1,1,{"v":1,"d":"1.00 RSD"},{"v":1,"d":"1.00 RSD"},{"$f":"(DetaljiFakture[[#This Row],[Kol.]]*DetaljiFakture[[#This Row],[Cena po jedinici]])-DetaljiFakture[[#This Row],[Popust]]","v":{"v":0,"d":"0.00 RSD"}}]
[null,"Faktura 3-456-1, podaci 2","3-456-1",2,2,{"v":2,"d":"2.00 RSD"},{"v":2,"d":"2.00 RSD"},{"$f":"(DetaljiFakture[[#This Row],[Kol.]]*DetaljiFakture[[#This Row],[Cena po jedinici]])-DetaljiFakture[[#This Row],[Popust]]","v":{"v":2,"d":"2.00 RSD"}}]
[null,"Faktura 3-456-1, podaci 3","3-456-1",3,3,{"v":3,"d":"3.00 RSD"},{"v":3,"d":"3.00 RSD"},{"$f":"(DetaljiFakture[[#This Row],[Kol.]]*DetaljiFakture[[#This Row],[Cena po jedinici]])-DetaljiFakture[[#This Row],[Popust]]","v":{"v":6,"d":"6.00 RSD"}}]
[null,"Faktura 3-456-1, podaci 4","3-456-1",4,4,{"v":4,"d":"4.00 RSD"},{"v":4,"d":"4.00 RSD"},{"$f":"(DetaljiFakture[[#This Row],[Kol.]]*DetaljiFakture[[#This Row],[Cena po jedinici]])-DetaljiFakture[[#This Row],[Popust]]","v":{"v":12,"d":"12.00 RSD"}}]
[null,"Faktura 3-456-1, podaci 5","3-456-1",5,5,{"v":5,"d":"5.00 RSD"},{"v":5,"d":"5.00 RSD"},{"$f":"(DetaljiFakture[[#This Row],[Kol.]]*DetaljiFakture[[#This Row],[Cena po jedinici]])-DetaljiFakture[[#This Row],[Popust]]","v":{"v":20,"d":"20.00 RSD"}}]
[null,"Faktura 3-456-1, podaci 6","3-456-1",6,6,{"v":6,"d":"6.00 RSD"},{"v":6,"d":"6.00 RSD"},{"$f":"(DetaljiFakture[[#This Row],[Kol.]]*DetaljiFakture[[#This Row],[Cena po jedinici]])-DetaljiFakture[[#This Row],[Popust]]","v":{"v":30,"d":"30.00 RSD"}}]
[null,"Faktura 3-456-1, podaci 7","3-456-1",7,7,{"v":7,"d":"7.00 RSD"},{"v":7,"d":"7.00 RSD"},{"$f":"(DetaljiFakture[[#This Row],[Kol.]]*DetaljiFakture[[#This Row],[Cena po jedinici]])-DetaljiFakture[[#This Row],[Popust]]","v":{"v":42,"d":"42.00 RSD"}}]
[null,"Faktura 3-456-1, podaci 8","3-456-1",8,8,{"v":8,"d":"8.00 RSD"},{"v":8,"d":"8.00 RSD"},{"$f":"(DetaljiFakture[[#This Row],[Kol.]]*DetaljiFakture[[#This Row],[Cena po jedinici]])-DetaljiFakture[[#This Row],[Popust]]","v":{"v":56,"d":"56.00 RSD"}}]
[null,"Faktura 3-456-1, podaci 9","3-456-1",9,9,{"v":9,"d":"9.00 RSD"},{"v":9,"d":"9.00 RSD"},{"$f":"(DetaljiFakture[[#This Row],[Kol.]]*DetaljiFakture[[#This Row],[Cena po jedinici]])-DetaljiFakture[[#This Row],[Popust]]","v":{"v":72,"d":"72.00 RSD"}}]
[null,"Faktura 3-456-1, podaci 10","3-456-1",10,10,{"v":10,"d":"10.00 RSD"},{"v":10,"d":"10.00 RSD"},{"$f":"(DetaljiFakture[[#This Row],[Kol.]]*DetaljiFakture[[#This Row],[Cena po jedinici]])-DetaljiFakture[[#This Row],[Popust]]","v":{"v":90,"d":"90.00 RSD"}}]
[null,"Faktura 3-456-1, podaci 11","3-456-1",11,11,{"v":11,"d":"11.00 RSD"},{"v":11,"d":"11.00 RSD"},{"$f":"(DetaljiFakture[[#This Row],[Kol.]]*DetaljiFakture[[#This Row],[Cena po jedinici]])-DetaljiFakture[[#This Row],[Popust]]","v":{"v":110,"d":"110.00 RSD"}}]
[null,"Faktura 3-456-1, podaci 12","3-456-1",12,12,{"v":12,"d":"12.00 RSD"},{"v":12,"d":"12.00 RSD"},{"$f":"(DetaljiFakture[[#This Row],[Kol.]]*DetaljiFakture[[#This Row],[Cena po jedinici]])-DetaljiFakture[[#This Row],[Popust]]","v":{"v":132,"d":"132.00 RSD"}}]
[null,"Faktura 3-456-1, podaci 13","3-456-1",13,13,{"v":13,"d":"13.00 RSD"},{"v":13,"d":"13.00 RSD"},{"$f":"(DetaljiFakture[[#This Row],[Kol.]]*DetaljiFakture[[#This Row],[Cena po jedinici]])-DetaljiFakture[[#This Row],[Popust]]","v":{"v":156,"d":"156.00 RSD"}}]
[null,"Faktura 3-456-1, podaci 14","3-456-1",14,14,{"v":14,"d":"14.00 RSD"},{"v":14,"d":"14.00 RSD"},{"$f":"(DetaljiFakture[[#This Row],[Kol.]]*DetaljiFakture[[#This Row],[Cena po jedinici]])-DetaljiFakture[[#This Row],[Popust]]","v":{"v":182,"d":"182.00 RSD"}}]
[null,"Faktura 3-456-1, podaci 15","3-456-1",15,15,{"v":15,"d":"15.00 RSD"},{"v":15,"d":"15.00 RSD"},{"$f":"(DetaljiFakture[[#This Row],[Kol.]]*DetaljiFakture[[#This Row],[Cena po jedinici]])-DetaljiFakture[[#This Row],[Popust]]","v":{"v":210,"d":"210.00 RSD"}}]
[null,"Faktura 3-456-1, podaci 16","3-456-1",16,16,{"v":16,"d":"16.00 RSD"},{"v":16,"d":"16.00 RSD"},{"$f":"(DetaljiFakture[[#This Row],[Kol.]]*DetaljiFakture[[#This Row],[Cena po jedinici]])-DetaljiFakture[[#This Row],[Popust]]","v":{"v":240,"d":"240.00 RSD"}}]
[null,"Faktura 3-456-1, podaci 17","3-456-1",17,17,{"v":17,"d":"17.00 RSD"},{"v":17,"d":"17.00 RSD"},{"$f":"(DetaljiFakture[[#This Row],[Kol.]]*DetaljiFakture[[#This Row],[Cena po jedinici]])-DetaljiFakture[[#This Row],[Popust]]","v":{"v":272,"d":"272.00 RSD"}}]
[null,"Faktura 3-456-1, podaci 18","3-456-1",18,18,{"v":18,"d":"18.00 RSD"},{"v":18,"d":"18.00 RSD"},{"$f":"(DetaljiFakture[[#This Row],[Kol.]]*DetaljiFakture[[#This Row],[Cena po jedinici]])-DetaljiFakture[[#This Row],[Popust]]","v":{"v":306,"d":"306.00 RSD"}}]
[null,"Faktura 3-456-1, podaci 19","3-456-1",19,19,{"v":19,"d":"19.00 RSD"},{"v":19,"d":"19.00 RSD"},{"$f":"(DetaljiFakture[[#This Row],[Kol.]]*DetaljiFakture[[#This Row],[Cena po jedinici]])-DetaljiFakture[[#This Row],[Popust]]","v":{"v":342,"d":"342.00 RSD"}}]
[null,"Faktura 3-456-1, podaci 20","3-456-1",20,20,{"v":20,"d":"20.00 RSD"},{"v":20,"d":"20.00 RSD"},{"$f":"(DetaljiFakture[[#This Row],[Kol.]]*DetaljiFakture[[#This Row],[Cena po jedinici]])-DetaljiFakture[[#This Row],[Popust]]","v":{"v":380,"d":"380.00 RSD"}}]
[null,"Faktura 3-456-1, podaci 21","3-456-1",21,21,{"v":21,"d":"21.00 RSD"},{"v":21,"d":"21.00 RSD"},{"$f":"(DetaljiFakture[[#This Row],[Kol.]]*DetaljiFakture[[#This Row],[Cena po jedinici]])-DetaljiFakture[[#This Row],[Popust]]","v":{"v":420,"d":"420.00 RSD"}}]
[null,"Faktura 3-456-1, podaci 22","3-456-1",22,22,{"v":22,"d":"22.00 RSD"},{"v":22,"d":"22.00 RSD"},{"$f":"(DetaljiFakture[[#This Row],[Kol.]]*DetaljiFakture[[#This Row],[Cena po jedinici]])-DetaljiFakture[[#This Row],[Popust]]","v":{"v":462,"d":"462.00 RSD"}}]
[null,"Faktura 3-456-1, podaci 23","3-456-1",23,23,{"v":23,"d":"23.00 RSD"},{"v":23,"d":"23.00 RSD"},{"$f":"(DetaljiFakture[[#This Row],[Kol.]]*DetaljiFakture[[#This Row],[Cena po jedinici]])-DetaljiFakture[[#This Row],[Popust]]","v":{"v":506,"d":"506.00 RSD"}}]
[null,"Faktura 3-456-1, podaci 24","3-456-1",24,24,{"v":24,"d":"24.00 RSD"},{"v":24,"d":"24.00 RSD"},{"$f":"(DetaljiFakture[[#This Row],[Kol.]]*DetaljiFakture[[#This Row],[Cena po jedinici]])-DetaljiFakture[[#This Row],[Popust]]","v":{"v":552,"d":"552.00 RSD"}}]
[null,"Faktura 3-456-1, podaci 25","3-456-1",25,25,{"v":25,"d":"25.00 RSD"},{"v":25,"d":"25.00 RSD"},{"$f":"(DetaljiFakture[[#This Row],[Kol.]]*DetaljiFakture[[#This Row],[Cena po jedinici]])-DetaljiFakture[[#This Row],[Popust]]","v":{"v":600,"d":"600.00 RSD"}}]
[null,"Faktura 3-456-2, podaci 1","3-456-2","Z4567",39,{"v":5,"d":"5.00 RSD"},null,{"$f":"(DetaljiFakture[[#This Row],[Kol.]]*DetaljiFakture[[#This Row],[Cena po jedinici]])-DetaljiFakture[[#This Row],[Popust]]","v":{"v":195,"d":"195.00 RSD"}}]
[null,"Faktura 3-456-2, podaci 2","3-456-2","Z4568",40,{"v":4,"d":"4.00 RSD"},{"v":5,"d":"5.00 RSD"},{"$f":"(DetaljiFakture[[#This Row],[Kol.]]*DetaljiFakture[[#This Row],[Cena po jedinici]])-DetaljiFakture[[#This Row],[Popust]]","v":{"v":155,"d":"155.00 RSD"}}]
[null,"Faktura 3-456-2, podaci 3","3-456-2","Z4569",30,{"v":6,"d":"6.00 RSD"},{"v":7,"d":"7.00 RSD"},{"$f":"(DetaljiFakture[[#This Row],[Kol.]]*DetaljiFakture[[#This Row],[Cena po jedinici]])-DetaljiFakture[[#This Row],[Popust]]","v":{"v":173,"d":"173.00 RSD"}}]
[null,"Faktura 3-456-2, podaci 4","3-456-2","Z4570",40,{"v":7,"d":"7.00 RSD"},null,{"$f":"(DetaljiFakture[[#This Row],[Kol.]]*DetaljiFakture[[#This Row],[Cena po jedinici]])-DetaljiFakture[[#This Row],[Popust]]","v":{"v":280,"d":"280.00 RSD"}}]
[null,"Faktura 3-456-2, podaci 5","3-456-2","Z4571",10,{"v":4,"d":"4.00 RSD"},null,{"$f":"(DetaljiFakture[[#This Row],[Kol.]]*DetaljiFakture[[#This Row],[Cena po jedinici]])-DetaljiFakture[[#This Row],[Popust]]","v":{"v":40,"d":"40.00 RSD"}}]
[null,"Faktura 3-456-2, podaci 6","3-456-2","Z4572",5,{"v":8,"d":"8.00 RSD"},null,{"$f":"(DetaljiFakture[[#This Row],[Kol.]]*DetaljiFakture[[#This Row],[Cena po jedinici]])-DetaljiFakture[[#This Row],[Popust]]","v":{"v":40,"d":"40.00 RSD"}}]
[null,"Faktura 3-456-2, podaci 7","3-456-2","Z4573",70,{"v":6,"d":"6.00 RSD"},null,{"$f":"(DetaljiFakture[[#This Row],[Kol.]]*DetaljiFakture[[#This Row],[Cena po jedinici]])-DetaljiFakture[[#This Row],[Popust]]","v":{"v":420,"d":"420.00 RSD"}}]
[null,"Faktura 3-456-2, podaci 8","3-456-2","Z4574",25,{"v":4,"d":"4.00 RSD"},null,{"$f":"(DetaljiFakture[[#This Row],[Kol.]]*DetaljiFakture[[#This Row],[Cena po jedinici]])-DetaljiFakture[[#This Row],[Popust]]","v":{"v":100,"d":"100.00 RSD"}}]
[null,"Faktura 3-456-2, podaci 9","3-456-2","Z4575",5,{"v":7,"d":"7.00 RSD"},{"v":3,"d":"3.00 RSD"},{"$f":"(DetaljiFakture[[#This Row],[Kol.]]*DetaljiFakture[[#This Row],[Cena po jedinici]])-DetaljiFakture[[#This Row],[Popust]]","v":{"v":32,"d":"32.00 RSD"}}]
[null,"Faktura 3-456-2, podaci 10","3-456-2","Z4576",80,{"v":1,"d":"1.00 RSD"},null,{"$f":"(DetaljiFakture[[#This Row],[Kol.]]*DetaljiFakture[[#This Row],[Cena po jedinici]])-DetaljiFakture[[#This Row],[Popust]]","v":{"v":80,"d":"80.00 RSD"}}]
[null,"Faktura 3-456-2, podaci 11","3-456-2","Z4577",65,{"v":7,"d":"7.00 RSD"},null,{"$f":"(DetaljiFakture[[#This Row],[Kol.]]*DetaljiFakture[[#This Row],[Cena po jedinici]])-DetaljiFakture[[#This Row],[Popust]]","v":{"v":455,"d":"455.00 RSD"}}]
[null,"Faktura 3-456-2, podaci 12","3-456-2","Z4578",44,{"v":1,"d":"1.00 RSD"},null,{"$f":"(DetaljiFakture[[#This Row],[Kol.]]*DetaljiFakture[[#This Row],[Cena po jedinici]])-DetaljiFakture[[#This Row],[Popust]]","v":{"v":44,"d":"44.00 RSD"}}]

{"sheet":"Osnovni podaci praćenja fakture","index":4,"n_rows":40,"n_cols":3,"rows_kept":40,"merged":[[3,1,3,7],[4,1,4,7],[5,1,5,7],[6,1,6,7],[7,2,7,7],[8,2,8,7],[9,2,9,7],[10,2,10,7],[11,2,11,7],[12,1,12,7],[13,2,13,3],[14,2,14,7],[15,1,15,7],[16,2,16,7],[17,2,17,7],[18,2,18,7],[19,2,19,7],[20,2,20,7],[21,2,21,7],[22,1,22,7],[23,1,23,7],[24,2,24,7],[25,2,25,7],[26,2,26,7],[27,2,27,7],[28,1,28,7],[29,1,29,7],[30,2,30,7],[31,2,31,7],[32,2,32,7],[33,2,33,7],[34,2,34,7],[36,2,36,7],[37,2,37,7],[38,2,38,7],[39,2,39,7]]}
[null,"Osnovni podaci praćenja fakture"]
[]
[]
[null,"Predložak za praćenje faktura je dizajniran za održavanje istorije klijenata, faktura i detalja o fakturi tako da možete da skladištite više faktura bez pravljenja više datoteka. Možete da koristite praćenje faktura i za analizu podataka koje ste prethodno fakturisali. Na primer, možete da prikažete sve fakture za klijenta, za određeni projekat ili sve fakture od prošlog meseca, prošle godine i još mnogo toga."]
[null,"Pre nego što počnete sa radom, pogledajte date uzorke podataka. Na listu „Faktura“ izaberite ćeliju sa desne strane stavke „Broj fakture“ (Ćelija L8) i padajuća lista će se pojaviti. Kliknite na strelicu nadole, a zatim izaberite uzorak fakture. Primetićete kako se sve informacije o fakturi automatski menjaju tako da odražavaju izabranu fakturu. Sada pogledajte listove „Klijenti“, „Fakture - Glavne“ i „Detalji o fakturi“. Svaki od ovih listova pruža informacije za fakturu, a sve promene koje izvršite će biti automatski ažurirane. "]
[null,"Kako da počnem sa radom?"]
[null,"Izmenite list fakture tako da odražava informacije o vašem preduzeću pomoću sledećih koraka:"]
[null,"1.","Idite na list „Faktura“ , na kartici „Redigovanje“, u okviru grupe „Zaštita“, a zatim izaberite stavku „Ukloni zaštitu lista“. "]
[null,null,"Napomena: List „Faktura“ je zaštićen kako bi se izbegle nenamerne promene, pošto se, kao što je prethodno pomenuto, većina podataka na ovom listu izvlači iz ostalih listova iz radne sveske. "]
[null,"2.","Prilagodite zaglavlje fakture tako što ćete uneti ime preduzeća, ulicu i broj, grad, poštanski broj, adresu e-pošte, veb-sajt, i tako dalje. Na dnu fakture (red 43) izmenite uputstva za plaćanje. "]
[null,null,"Važno: Nemojte menjati informacije o naplati ili fakturi. Sve ove ćelije imaju formule koje će automatski ažurirati fakturu, kao što je navedeno u odeljku „Osnovni podaci praćenja fakture“.  "]
[null,"3.","(Opciono) Izmenite boje u celoj radnoj svesci: Na kartici „Raspored na stranici“, u grupi „Teme“, izaberite stavku „Boje“, a zatim izaberite drugi skup boja teme iz galerije boja. "]
[null,"Savet: Kreirajte prilagođeni skup boja teme tako da odgovara brendiranju vašeg preduzeća! Da biste to uradili, na kartici „Raspored na stranici“, u grupi „Teme“, izaberite stavku „Boje“, a zatim izaberite stavku „Prilogodi boje“. Za više informacija o kreiranju prilagođenog skupa boja pogledajte sledeću temu: "]
[null,null,"Prilagođavanje teme dokumenta."]
[null,"4.","Kada unesete željene promene, vratite se na list „Faktura“ i na kartici „Redigovanje“, u grupi „Promene“, izaberite stavku „Zaštita lista“, a zatim kliknite na dugme „U redu“. Kada je list „Faktura“ zaštićen, jedina ćelija koju možete da izaberete je ćelija sa padajućom listom „Broj fakture“."]
[null,"Kako da kreiram fakturu?"]
[null,"1.","Na listu „Klijenti“ unesite informacije o klijentu kao što su ime preduzeća i adresa. Imajte na umu da broj preduzeća predstavlja važnu stavku jer pruža jedinstveni identifikator svakog preduzeća koje se koristi u praćenju faktura. Takođe ne zaboravite da je potrebno samo jednom da dodate preduzeće. Za naredne fakture za isto preduzeće, ovaj korak može da bude preskočen. "]
[null,null,"Napomena: Ako isti broj dodelite većem broju preduzeća ili unesete isto ime preduzeća više puta, stavke će se zacrveneti da bi vas upozorile na dupliranje. "]
[null,"2.","Na listu „Fakture - Glavne“ unesite primarne informacije o fakturi kao što su broj fakture, datum fakture i opis projekta. Kao i broj preduzeća, broj fakture predstavlja važnu stavku jer pruža jedinstveni identifikator svake fakture koja se koristi u praćenju faktura. Još jedna važna stavka je preduzeće. Kada izaberete preduzeće sa date padajuće liste, faktura se povezuje sa tim preduzećem. Zatim, kada izaberete broj fakture na listu „Faktura“, informacije o tom preduzeću, kao što su ime preduzeća i adresa, biće automatski popunjene u fakturi."]
[null,null,"Napomena: Ako isti broj dodelite većem broju faktura, stavke će se zacrveneti da bi vas upozorile na dupliranje. "]
[null,"3.","Na listu „Detalji o fakturi“ unesite detalje o fakturi, kao što su opis stavke, broj stavke, količina i cena po jedinici. Padajuća lista „Broj fakture“ pruža listu faktura koje ste uneli na list „Fakture - Glavne“ da bi se olakšao unos podataka. Slično broju preduzeća u prethodnom koraku, broj faktura povezuje taj detalj stavke sa određenom fakturom. Kada izaberete broj fakture na listu „Faktura“ iz padajuće liste „Broj fakture“, povezani detalj stavki fakture će se pojaviti za tu fakturu."]
[null,null,"Napomena: Ograničeni ste na 25 detalja stavki po fakturi. Ako dodate više od 25 stavki, svi odgovarajući unosi će se zacrveneti da bi vas upozorili na ovo ograničenje. Ako imate više od 25 stavki za fakturisanje, moraćete da kreirate drugu fakturu. "]
[null,"Kako da dodam još klijenata, faktura i detalja o fakturi?"]
[null,"Podaci o klijentima, fakturama i detaljima fakture skladište se u Excel tabelama. Kada dodate novi red u tabelu, on će se automatski formatirati, a svi proračuni će biti kopirani. Da biste dodali nove redove u tabelu, uradite nešto od sledećeg:"]
[null,"● ","Ako tabela nema red sa zbirom, počnite da kucate ispod tabele i ona će se automatski razviti kad pritisnete taster Enter ili Tab."]
[null,"● ","Postavite pokazivač za ćeliju u poslednju ćeliju iznad reda sa zbirom, na primer u tabeli „Fakture“, u ćeliju „Beleške“ za poslednju fakturu, a zatim pritisnite taster Tab."]
[null,"● ","Na kartici „Početak“, u grupi „Ćelije“, izaberite stavku „Umetanje“, a zatim izaberite stavku „Redovi tabele iznad“ ili „Redovi tabele ispod“. "]
[null,"● ","U donjem desnom uglu tabele postavite miša na regulator veličine tabele i prevucite ga nadole da biste povećali broj dostupnih redova tabele."]
[null,"Kako da analiziram detalje o fakturi?"]
[null,"Kao što je navedeno u odeljku „Osnovni podaci o praćenju faktura“, kada unesete nekoliko faktura, možete da prikažete listu svih faktura za određenog klijenta, za određeni projekat, interval datuma i još mnogo toga. Ovaj tip analize se vrši pomoću filtera koji omogućava brzo sužavanje liste podataka. Da biste pristupili filtriranju u tabeli „Klijenti“, „Fakture“ ili „Detalji o fakturi“, kliknite na strelicu nadole pored bilo kog imena polja u tabeli. Prikazaće se okno za filtriranje sa različitim opcijama filtriranja. Evo nekoliko primera filtriranja koji će vam pomoći da počnete sa radom:"]
[null,"● ","Da biste videli ukupan iznos koji ste fakturisali određenom klijentu: Na listu „Fakture - Glavne“, sa desne strane polja „Broj preduzeća“, kliknite na strelicu nadole. U oknu za filtriranje kliknite na stavku „Izaberi sve“ da biste opozvali izbor svih preduzeća, a zatim izaberite željeno preduzeće i kliknite na dugme „U redu“. "]
[null,null,"Savet: U okviru okna za Filter možete da ukucate i ime klijenta u okvir za tekst „Pretraga“ da biste brzo pretražili dostupnu listu."]
[null,"● ","Da biste prikazali sve fakture za određenog klijenta i određene projekte: Počnite tako što ćete koristiti filtriranje za željenog klijenta pomoću koraka koji su navedeni u prethodnom primeru. Zatim, sa desne strane broja projekta, kliknite na strelicu nadole. U oknu za filtriranje izaberite željeni projekat ili projekte, a zatim kliknite na dugme „U redu“. "]
[null,"● ","Da biste prikazali sve fakture od prethodnog meseca: Na listu „Fakture - Glavne“, sa desne strane polja „Datum fakture“, kliknite na strelicu nadole, postavite pokazivač na filtere datuma, a zatim izaberite stavku „Prethodni mesec“."]
[null,"● ","Da biste prikazali sve klijente sa istim pozivnim brojem: Na listu „Klijenti“, sa desne strane polja „Telefon“, kliknite na strelicu nadole. U oknu za filtriranje, kliknite u okvir za tekst „Pretraga“, ukucajte pozivni broj, a zatim kliknite na dugme „U redu“. "]
[null,"Saveti za filtriranje"]
[null,"● ","Ako tabela ima red sa zbirom, kao što su klijenti i fakture, izračunati zbirovi odraziće se samo na filtriranu listu."]
[null,"● ","Koristite više filtera u jednom polju ili u više polja da biste precizno podesili rezultate."]
[null,"● ","Da biste obrisali jedan filter, kliknite na strelicu nadole za prethodno filtriranu kolonu, a zatim izaberite stavku „Obriši filter iz <ime polja>."]
[null,"● ","Da biste obrisali više filtera istovremeno, postavite pokazivač za ćeliju u tabelu, na kartici „Početak“, u grupi „Uređivanje“, izaberite stavku „Sortiraj i filtriraj“, a zatim izaberite stavku „Obriši“."]